lending/lending_fUSD_20251016
["ID","MTS","AMOUNT","RATE_DAILY","PERIOD"]
[391451748,1760608259739,-1552.69,0.00016438,2]
[391451749,1760608259749,-1552.8392511,0.00016438,2]
[391451750,1760608259759,-799.99,0.00016438,2]
[391451751,1760608259769,-799.99,0.00016438,2]
[391451753,1760608259780,-799.99,0.00016438,2]
[391451755,1760608259790,-799.99,0.00016438,2]
[391451757,1760608259802,-799.99,0.00016438,2]
[391451759,1760608259812,-799.99,0.00016438,2]
[391451761,1760608259822,-799.99,0.00016438,2]
[391451763,1760608259832,-799.99,0.00016438,2]
[391451765,1760608259841,-799.99,0.00016438,2]
[391451767,1760608259851,-799.99,0.00016438,2]
[391451769,1760608259861,-799.99,0.00016438,2]
[391451771,1760608259871,-799.99,0.00016438,2]
[391451773,1760608259881,-799.99,0.00016438,2]
[391451775,1760608259890,-799.99,0.00016438,2]
[391451777,1760608259900,-799.99,0.00016438,2]
[391451779,1760608259911,-799.99,0.00016438,2]
[391451781,1760608259920,-799.99,0.00016438,2]
[391451783,1760608259931,-799.99,0.00016438,2]
[391451785,1760608259940,-799.99,0.00016438,2]
[391451787,1760608259949,-799.99,0.00016438,2]
[391451789,1760608259959,-799.99,0.00016438,2]
[391451791,1760608259968,-799.99,0.00016438,2]
[391451793,1760608259978,-799.99,0.00016438,2]
[391451795,1760608259987,-800.07524429,0.00016438,2]
[391451797,1760608259997,-500.0,0.00016438,2]
[391451799,1760608260006,-500.0,0.00016438,2]
[391451801,1760608260016,-500.0,0.00016438,2]
[391451803,1760608260026,-500.0,0.00016438,2]
[391451805,1760608260036,-500.0,0.00016438,2]
[391451808,1760608260045,-500.0,0.00016438,2]
[391451810,1760608260058,-500.0,0.00016438,2]
[391451812,1760608260068,-500.0,0.00016438,2]
[391451814,1760608260078,-500.0,0.00016438,2]
[391451816,1760608260088,-178.82994261,0.00016438,2]
[391451818,1760608260099,-1140.45,0.00016438,2]
[391451820,1760608260113,-1140.45,0.00016438,2]
[391451822,1760608260123,-1140.45,0.00016438,2]
[391451824,1760608260134,-1140.45,0.00016438,2]
[391451826,1760608260144,-1140.45,0.00016438,2]
[391451828,1760608260154,-1140.45,0.00016438,2]
[391451830,1760608260164,-1140.45,0.00016438,2]
[391451832,1760608260174,-1140.45,0.00016438,2]
[391451835,1760608260184,-1140.45,0.00016438,2]
[391451837,1760608260194,-1140.45,0.00016438,2]
[391451839,1760608260206,-1140.45,0.00016438,2]
[391451841,1760608260215,-1140.45,0.00016438,2]
[391451843,1760608260225,-1140.45,0.00016438,2]
[391451845,1760608260234,-1140.45,0.00016438,2]
[391451847,1760608260243,-1140.45,0.00016438,2]
[391451849,1760608260253,-1140.45,0.00016438,2]
[391451851,1760608260263,-1140.45,0.00016438,2]
[391451853,1760608260273,-1140.45,0.00016438,2]
[391451855,1760608260283,-1140.45,0.00016438,2]
[391451857,1760608260293,-1140.45,0.00016438,2]
[391451878,1760608260553,-1140.45,0.00016438,2]
[391451880,1760608260564,-1140.45,0.00016438,2]
[391451882,1760608260574,-1140.45,0.00016438,2]
[391451884,1760608260583,-1140.49897267,0.00016438,2]
[391451886,1760608260592,-500.0,0.00016438,2]
[391451888,1760608260606,-500.0,0.00016438,2]
[391451890,1760608260615,-500.0,0.00016438,2]
[391451892,1760608260625,-500.0,0.00016438,2]
[391451894,1760608260634,-500.0,0.00016438,2]
[391451896,1760608260644,-500.0,0.00016438,2]
[391451898,1760608260654,-500.0,0.00016438,2]
[391451900,1760608260664,-500.0,0.00016438,2]
[391451902,1760608260674,-500.0,0.00016438,2]
[391451904,1760608260683,-500.0,0.00016438,2]
[391451906,1760608260693,-500.0,0.00016438,2]
[391451908,1760608260703,-501.8975631,0.00016438,2]
[391451910,1760608260713,-568.66,0.00016438,2]
[391451912,1760608260722,-568.66,0.00016438,2]
[391451914,1760608260732,-568.66,0.00016438,2]
[391451916,1760608260742,-568.66,0.00016438,2]
[391451919,1760608260752,-568.66,0.00016438,2]
[391451921,1760608260761,-568.66,0.00016438,2]
[391451923,1760608260771,-568.66,0.00016438,2]
[391451925,1760608260782,-568.66,0.00016438,2]
[391451927,1760608260792,-568.66,0.00016438,2]
[391451929,1760608260806,-568.66,0.00016438,2]
[391451931,1760608260817,-568.66,0.00016438,2]
[391451933,1760608260827,-568.66,0.00016438,2]
[391451934,1760608260838,-568.66,0.00016438,2]
[391451936,1760608260849,-568.66,0.00016438,2]
[391451938,1760608260860,-568.66,0.00016438,2]
[391451940,1760608260870,-568.66,0.00016438,2]
[391451942,1760608260880,-568.66,0.00016438,2]
[391451943,1760608260891,-568.66,0.00016438,2]
[391451946,1760608260900,-568.66,0.00016438,2]
[391451948,1760608260910,-568.66,0.00016438,2]
[391451950,1760608260920,-568.66,0.00016438,2]
[391451952,1760608260930,-568.66,0.00016438,2]
[391451954,1760608260939,-568.66,0.00016438,2]
[391451956,1760608260948,-568.85,0.00016438,2]
[391451958,1760608260958,-571.68,0.00016438,2]
[391451960,1760608260967,-571.68,0.00016438,2]
[391451962,1760608260977,-571.68,0.00016438,2]
[391451964,1760608260987,-571.68,0.00016438,2]
[391451966,1760608260997,-571.68,0.00016438,2]
[391451968,1760608261006,-571.68,0.00016438,2]
[391451970,1760608261016,-571.68,0.00016438,2]
[391451972,1760608261025,-571.68,0.00016438,2]
[391451974,1760608261035,-571.68,0.00016438,2]
[391451976,1760608261045,-571.68,0.00016438,2]
[391451978,1760608261058,-571.68,0.00016438,2]
[391451980,1760608261068,-571.68,0.00016438,2]
[391451982,1760608261078,-571.68,0.00016438,2]
[391451984,1760608261087,-571.68,0.00016438,2]
[391451986,1760608261096,-571.68,0.00016438,2]
[391451988,1760608261106,-571.68,0.00016438,2]
[391451990,1760608261117,-571.68,0.00016438,2]
[391451992,1760608261127,-571.68,0.00016438,2]
[391451994,1760608261137,-571.68,0.00016438,2]
[391451996,1760608261146,-571.68,0.00016438,2]
[391451998,1760608261156,-571.68,0.00016438,2]
[391452000,1760608261165,-571.68,0.00016438,2]
[391452002,1760608261175,-571.68,0.00016438,2]
[391452004,1760608261185,-571.81320427,0.00016438,2]
[391452006,1760608261194,-500.0,0.00016438,2]
[391452008,1760608261203,-500.0,0.00016438,2]
[391452010,1760608261215,-500.0,0.00016438,2]
[391452012,1760608261226,-500.0,0.00016438,2]
[391452014,1760608261235,-273.67573661,0.00016438,2]
[391452084,1760608261964,-226.32426339,0.00016438,2]
[391452086,1760608261977,-500.0,0.00016438,2]
[391452088,1760608261988,-500.0,0.00016438,2]
[391452090,1760608261999,-500.0,0.00016438,2]
[391452092,1760608262010,-500.0,0.00016438,2]
[391452094,1760608262021,-500.0,0.00016438,2]
[391452096,1760608262035,-500.0,0.00016438,2]
[391452098,1760608262046,-500.0,0.00016438,2]
[391452100,1760608262061,-500.0,0.00016438,2]
[391452102,1760608262072,-500.0,0.00016438,2]
[391452105,1760608262082,-500.0,0.00016438,2]
[391452107,1760608262092,-500.0,0.00016438,2]
[391452109,1760608262103,-500.0,0.00016438,2]
[391452111,1760608262112,-500.0,0.00016438,2]
[391452113,1760608262122,-500.0,0.00016438,2]
[391452115,1760608262132,-500.0,0.00016438,2]
[391452117,1760608262141,-500.0,0.00016438,2]
[391452119,1760608262152,-500.0,0.00016438,2]
[391452121,1760608262162,-622.41239282,0.00016438,2]
[391452123,1760608262171,-1472.71,0.00016438,2]
[391452125,1760608262180,-1472.71,0.00016438,2]
[391452127,1760608262190,-1472.71,0.00016438,2]
[391452129,1760608262200,-1472.71,0.00016438,2]
[391452131,1760608262212,-1472.71,0.00016438,2]
[391452133,1760608262222,-1472.71,0.00016438,2]
[391452135,1760608262232,-1472.71,0.00016438,2]
[391452137,1760608262243,-1472.71,0.00016438,2]
[391452139,1760608262252,-1472.71,0.00016438,2]
[391452141,1760608262261,-1472.71,0.00016438,2]
[391452143,1760608262270,-1472.71,0.00016438,2]
[391452145,1760608262279,-1472.71,0.00016438,2]
[391452147,1760608262288,-1472.71,0.00016438,2]
[391452149,1760608262298,-1472.71,0.00016438,2]
[391452151,1760608262310,-1472.71,0.00016438,2]
[391452153,1760608262319,-1472.71,0.00016438,2]
[391452154,1760608262329,-1472.71,0.00016438,2]
[391452156,1760608262338,-1472.71,0.00016438,2]
[391452158,1760608262348,-1472.71,0.00016438,2]
[391452161,1760608262358,-1472.71,0.00016438,2]
[391452163,1760608262367,-1472.71,0.00016438,2]
[391452165,1760608262377,-1472.71,0.00016438,2]
[391452167,1760608262387,-1472.71,0.00016438,2]
[391452169,1760608262396,-1472.89263444,0.00016438,2]
[391452171,1760608262405,-500.0,0.00016438,2]
[391452173,1760608262416,-500.0,0.00016438,2]
[391452175,1760608262429,-500.0,0.00016438,2]
[391452177,1760608262439,-500.0,0.00016438,2]
[391452179,1760608262449,-504.26455284,0.00016438,2]
[391452181,1760608262458,-2820.71,0.00016438,2]
[391452183,1760608262467,-2820.71,0.00016438,2]
[391452185,1760608262476,-2703.18,0.00016438,2]
[391452187,1760608262486,-584.14001667,0.00016438,2]
[391452190,1760608262504,-1163.2004671,0.00016438,2]
[391452256,1760608263202,-437.96981368,0.00016438,2]
[391452261,1760608263237,-311.26420289,0.00016438,2]
[391452451,1760608265562,-324.13549966,0.00016438,2]
[391452453,1760608265571,-1537.7141096,0.00016438,2]
[391452455,1760608265582,-1165.4658904,0.00016438,2]
[391452457,1760608265592,-1016.1341096,0.00016438,2]
[391452459,1760608265607,-1804.5758904,0.00016438,2]
[391452461,1760608265616,-525.86822538,0.00016438,2]
[391452464,1760608265637,-1103.8,0.00016438,2]
[391452473,1760608265726,-560.76514951,0.00016438,2]
[391452476,1760608265737,-512.74662511,0.00016438,2]
[391452478,1760608265747,-1140.89462778,0.00016438,2]
[391452480,1760608265758,-1679.81537222,0.00016438,2]
[391452482,1760608265768,-1906.94470689,0.00016438,2]
[391452490,1760608265837,-796.23529311,0.00016438,2]
[391452492,1760608265846,-1196.99942565,0.00016438,2]
[391452494,1760608265857,-903.29999911,0.00016438,2]
[391452497,1760608265869,-720.41057524,0.00016438,2]
[391452499,1760608265878,-1490.05638476,0.00016438,2]
[391453136,1760608423497,1460.09,0.00016438,30]
[391453153,1760608604998,1000.0,0.00027397,120]
[391453154,1760608616156,1000.0,0.00027397,120]
[391453155,1760608626900,1000.0,0.00027397,120]
[391453156,1760608637839,1000.0,0.00027397,120]
[391453183,1760608646879,1000.0,0.00027397,120]
[391453202,1760608656726,1000.0,0.00027397,120]
[391453209,1760608841098,150.0,0.00027397,120]
[391453210,1760608848460,150.0,0.00027397,120]
[391453211,1760608851147,150.0,0.00027397,120]
[391453212,1760608852701,150.0,0.00027397,120]
[391453213,1760608854871,150.0,0.00027397,120]
[391453214,1760608857168,150.0,0.00027397,120]
[391453220,1760608925430,150.0,0.00013,2]
[391453237,1760608963220,368.48,0.00027397,120]
[391453239,1760609005510,2026.41,0.00027397,120]
[391453334,1760609432642,-438.84,0.00013699,2]
[391453336,1760609432653,-250.0,0.00015202,2]
[391453338,1760609432662,-945.56061254,0.00015212,2]
[391453340,1760609432672,-626.66611489,0.00015444,2]
[391453342,1760609432681,-250.0,0.00015469,7]
[391453344,1760609432690,-1000.0,0.00015493,2]
[391453346,1760609432704,-1200.0,0.00015542,2]
[391453347,1760609432713,-4286.89327259,0.00015543,2]
[391453348,1760609432728,-230.31672741,0.00015543,2]
[391453349,1760609432737,-666.0,0.00015556,3]
[391453350,1760609432747,-300.0,0.00015583,2]
[391453351,1760609432757,-2333.88329085,0.00015584,2]
[391453352,1760609432773,-559.45,0.00015584,2]
[391453353,1760609432786,-1333.999995,0.00015584,2]
[391453354,1760609432797,-2208.66671415,0.00015584,2]
[391453355,1760609432807,-2484.66108578,0.00015584,2]
[391453356,1760609432818,-1263.726936,0.00015616,2]
[391453357,1760609432827,-42.94526407,0.00015794,2]
[391453358,1760609432839,-980.05473593,0.00015794,2]
[391453359,1760609432849,-1344.0,0.00015858,2]
[391453360,1760609432859,-1063.0,0.00015889,2]
[391453361,1760609432868,-9319.30201219,0.00015896,2]
[391453362,1760609432922,-680.68798781,0.00015896,2]
[391453363,1760609432933,-150.0,0.00015896,2]
[391453364,1760609432942,-151.51,0.000159,2]
[391453365,1760609432952,-3089.21766013,0.00015914,2]
[391453366,1760609432962,-1224.0,0.00015921,2]
[391453367,1760609432972,-446.70145676,0.00015944,2]
[391453368,1760609432981,-551.0,0.00016052,2]
[391453369,1760609432991,-1552.0,0.00016084,2]
[391453370,1760609433001,-1122.0,0.00016116,2]
[391453371,1760609433011,-751.0,0.00016148,2]
[391453372,1760609433020,-1283.0,0.0001618,2]
[391453373,1760609433030,-150.0,0.00016211,2]
[391453374,1760609433041,-1158.0,0.00016212,2]
[391453375,1760609433051,-816.488,0.00016271,2]
[391453376,1760609433061,-1058.73,0.00016271,2]
[391453377,1760609433070,-7325.58,0.00016292,2]
[391453378,1760609433080,-209.61866052,0.00016338,2]
[391453379,1760609433093,-157.11352446,0.00016338,2]
[391453380,1760609433103,-608.85200388,0.00016338,2]
[391453381,1760609433112,-150.0,0.00016338,2]
[391453382,1760609433122,-150.0,0.00016338,2]
[391453383,1760609433132,-2984.1747,0.00016338,2]
[391453384,1760609433141,-401.6017,0.00016338,2]
[391453385,1760609433151,-5000.0,0.00016338,2]
[391453386,1760609433162,-716.82464585,0.00016359,2]
[391453387,1760609433172,-151.0,0.00016428,2]
[391453388,1760609433181,-151.0,0.00016428,2]
[391453389,1760609433191,-151.0,0.00016428,2]
[391453390,1760609433200,-151.0,0.00016428,2]
[391453391,1760609433210,-151.0,0.00016428,2]
[391453392,1760609433219,-151.0,0.00016428,2]
[391453393,1760609433228,-151.0,0.00016428,2]
[391453394,1760609433238,-151.0,0.00016428,2]
[391453395,1760609433247,-151.0,0.00016428,2]
[391453396,1760609433257,-151.0,0.00016428,2]
[391453397,1760609433267,-151.0,0.00016428,2]
[391453398,1760609433277,-162.88643894,0.00016428,2]
[391453399,1760609433288,-200.0,0.00016428,2]
[391453400,1760609433298,-721.12765535,0.00016428,2]
[391453401,1760609433308,-322.6107,0.00016428,2]
[391453402,1760609433317,-151.0,0.00016435,2]
[391453403,1760609433327,-3055.86357961,0.00016437,2]
[391453404,1760609433337,-500.0,0.00016438,2]
[391453405,1760609433347,-500.0,0.00016438,2]
[391453406,1760609433357,-500.0,0.00016438,2]
[391453407,1760609433366,-500.0,0.00016438,2]
[391453408,1760609433376,-500.0,0.00016438,2]
[391453409,1760609433386,-500.0,0.00016438,2]
[391453410,1760609433396,-500.0,0.00016438,2]
[391453411,1760609433405,-500.0,0.00016438,2]
[391453412,1760609433415,-500.0,0.00016438,2]
[391453413,1760609433424,-500.0,0.00016438,2]
[391453414,1760609433434,-500.0,0.00016438,2]
[391453415,1760609433443,-500.0,0.00016438,2]
[391453416,1760609433453,-500.0,0.00016438,2]
[391453417,1760609433463,-500.0,0.00016438,2]
[391453418,1760609433475,-500.0,0.00016438,2]
[391453419,1760609433485,-500.0,0.00016438,2]
[391453420,1760609433494,-500.0,0.00016438,2]
[391453421,1760609433503,-500.0,0.00016438,2]
[391453422,1760609433513,-500.0,0.00016438,2]
[391453423,1760609433523,-500.0,0.00016438,2]
[391453424,1760609433535,-500.0,0.00016438,2]
[391453425,1760609433546,-500.0,0.00016438,2]
[391453426,1760609433555,-500.0,0.00016438,2]
[391453427,1760609433565,-500.0,0.00016438,2]
[391453428,1760609433575,-500.0,0.00016438,2]
[391453429,1760609433585,-217.85141719,0.00016438,2]
[391453430,1760609433594,-300.0,0.00016438,2]
[391453431,1760609433604,-300.0,0.00016438,2]
[391453432,1760609433614,-300.0,0.00016438,2]
[391453433,1760609433623,-300.0,0.00016438,2]
[391453434,1760609433633,-300.0,0.00016438,2]
[391453435,1760609433642,-300.0,0.00016438,2]
[391453436,1760609433652,-300.0,0.00016438,2]
[391453437,1760609433662,-300.0,0.00016438,2]
[391453438,1760609433671,-300.0,0.00016438,2]
[391453439,1760609433684,-300.0,0.00016438,2]
[391453440,1760609433693,-300.0,0.00016438,2]
[391453441,1760609433703,-300.0,0.00016438,2]
[391453442,1760609433713,-166.74454746,0.00016438,2]
[391453443,1760609433723,-151.0,0.00016438,2]
[391453444,1760609433733,-165.99532205,0.00016438,2]
[391453445,1760609433747,-7636.52307429,0.00016438,2]
[391453446,1760609433803,-2558.27217871,0.00016438,2]
[391453447,1760609433816,-8938.86748955,0.00016438,2]
[391453448,1760609433826,-872.2268213,0.00016438,2]
[391453449,1760609433835,-500.0,0.00016438,2]
[391453450,1760609433847,-1605.3201182,0.00016438,2]
[391453451,1760609433858,-500.0,0.00016438,2]
[391453452,1760609433871,-500.0,0.00016438,2]
[391453453,1760609433880,-500.0,0.00016438,2]
[391453454,1760609433890,-500.0,0.00016438,2]
[391453455,1760609433901,-500.0,0.00016438,2]
[391453456,1760609433910,-500.0,0.00016438,2]
[391453457,1760609433921,-168.5998643,0.00016438,2]
[391453458,1760609433933,-331.4001357,0.00016438,2]
[391453459,1760609433953,-500.0,0.00016438,2]
[391453460,1760609433963,-500.0,0.00016438,2]
[391453461,1760609433973,-500.0,0.00016438,2]
[391453462,1760609433982,-500.0,0.00016438,2]
[391453463,1760609433992,-500.0,0.00016438,2]
[391453464,1760609434001,-466.89265885,0.00016438,2]
[391453465,1760609434011,-200.0,0.00016438,2]
[391453466,1760609434021,-151.0,0.00016438,2]
[391453467,1760609434031,-151.0,0.00016438,2]
[391453468,1760609434042,-151.0,0.00016438,2]
[391453469,1760609434051,-500.0,0.00016438,2]
[391453470,1760609434061,-500.0,0.00016438,2]
[391453471,1760609434070,-529.18394038,0.00016438,2]
[391453472,1760609434080,-150.0,0.00016438,2]
[391453473,1760609434090,-500.0,0.00016438,2]
[391453474,1760609434099,-151.0,0.00016438,2]
[391453475,1760609434108,-150.0,0.00016438,2]
[391453476,1760609434119,-150.0,0.00016438,2]
[391453477,1760609434128,-151.00000014,0.00016438,2]
[391453478,1760609434137,-82.64912493,0.00016438,2]
[391453479,1760609434766,-68.35087507,0.00016438,2]
[391453480,1760609434779,-860.06,0.00016438,2]
[391453481,1760609434789,-25.35284485,0.00016438,2]
[391453482,1760609434801,-834.70715515,0.00016438,2]
[391453483,1760609434815,-860.06,0.00016438,2]
[391453484,1760609434824,-860.06,0.00016438,2]
[391453485,1760609434834,-860.06,0.00016438,2]
[391453486,1760609434848,-539.45384465,0.00016438,2]
[391453487,1760609434889,-304.32741343,0.00016438,2]
[391453488,1760609434901,-16.27874192,0.00016438,2]
[391453489,1760609434911,-515.60285269,0.00016438,2]
[391453490,1760609434923,-344.45714731,0.00016438,2]
[391453491,1760609434932,-78.06861793,0.00016438,2]
[391453692,1760609439821,-150.0,0.00016338,2]
[391453694,1760609439831,-1798.99019996,0.00016338,2]
[391454321,1760609446101,-399.999998,0.00016338,2]
[391454352,1760609446398,-609.12500582,0.00016338,2]
[391454358,1760609446450,-1167.93582325,0.00016338,2]
[391454371,1760609446565,-1023.94897297,0.00016338,2]
[391454373,1760609446574,-150.0,0.00016435,2]
[391454375,1760609446584,-781.99138207,0.00016438,2]
[391454377,1760609446594,-860.06,0.00016438,2]
[391454379,1760609446603,-860.06,0.00016438,2]
[391454381,1760609446613,-219.38964496,0.00016438,2]
[391454387,1760609446667,-640.67035504,0.00016438,2]
[391454389,1760609446678,-860.06,0.00016438,2]
[391454391,1760609446688,-860.06,0.00016438,2]
[391454393,1760609446697,-860.06,0.00016438,2]
[391454395,1760609446707,-860.06,0.00016438,2]
[391454397,1760609446716,-860.06,0.00016438,2]
[391454399,1760609446725,-860.06,0.00016438,2]
[391454401,1760609446734,-860.06,0.00016438,2]
[391454403,1760609446745,-860.06,0.00016438,2]
[391454405,1760609446755,-860.06,0.00016438,2]
[391454407,1760609446765,-860.06,0.00016438,2]
[391454409,1760609446779,-860.06,0.00016438,2]
[391454411,1760609446788,-860.06,0.00016438,2]
[391454413,1760609446799,-860.25089641,0.00016438,2]
[391454415,1760609446809,-1043.82,0.00016438,2]
[391454417,1760609446819,-151.0,0.00016438,2]
[391454419,1760609446828,-1043.82,0.00016438,2]
[391454421,1760609446837,-711.28029191,0.00016438,2]
[391456441,1760609744406,1000.0,0.00027397,120]
[391456442,1760609744664,928.43,0.00027397,120]
[391456496,1760610061993,456.39,7.952e-05,2]
[391456497,1760610062427,456.39,8.371e-05,2]
[391456498,1760610062940,456.39,8.789e-05,2]
[391456499,1760610063225,456.39,9.208e-05,2]
[391456500,1760610063534,456.39,9.626e-05,2]
[391456501,1760610064197,456.39,0.00010045,2]
[391456502,1760610065506,456.39,0.00010464,2]
[391456503,1760610065950,456.39,0.00010882,2]
[391456504,1760610066225,456.39,0.00011301,2]
[391456505,1760610066420,456.39,0.00011719,2]
[391456506,1760610066638,456.39,0.00012138,2]
[391456507,1760610067438,456.39,0.00012556,2]
[391456508,1760610067749,456.39,0.00012975,2]
[391456509,1760610074036,-214.7461675,0.00013393,2]
[391456531,1760610499581,1910.48002366,0.0001,2]
[391456599,1760610628115,-226.05562376,0.00013393,2]
[391456621,1760610634586,-15.58820874,0.00013393,2]
[391456622,1760610634597,-166.66,0.00013699,2]
[391456623,1760610634608,-1086.56676172,0.00013699,2]
[391456624,1760610634618,-456.39,0.00013812,2]
[391456625,1760610634627,-166.66,0.00013979,2]
[391456626,1760610634636,-456.39,0.00014231,2]
[391456627,1760610634645,-166.66,0.00014259,2]
[391456628,1760610634655,-166.66,0.0001454,2]
[391456629,1760610634664,-456.39,0.00014649,2]
[391456630,1760610634673,-166.66,0.0001482,2]
[391456631,1760610634683,-1200.0,0.00014899,2]
[391456632,1760610634692,-296.0,0.00014899,2]
[391456633,1760610634702,-150.0,0.00014899,2]
[391456634,1760610634712,-6115.27580784,0.000149,2]
[391456635,1760610634722,-3378.11715625,0.000149,2]
[391456636,1760610634731,-242.39157841,0.000149,2]
[391456637,1760610634740,-211.67235406,0.000149,2]
[391456638,1760610634750,-665.31974085,0.000149,2]
[391456639,1760610634759,-402.0,0.00014959,2]
[391456640,1760610634769,-217.88436116,0.00014968,2]
[391456641,1760610634778,-500.0,0.00014973,2]
[391456642,1760610634787,-316.53183403,0.00014973,2]
[391456643,1760610634797,-500.59683785,0.00014973,2]
[391456644,1760610634807,-501.49056779,0.00014973,2]
[391456645,1760610634816,-500.0,0.00014973,2]
[391456646,1760610634826,-500.0,0.00014973,2]
[391456647,1760610634835,-500.0,0.00014973,2]
[391456648,1760610634845,-500.0,0.00014973,2]
[391456649,1760610634855,-500.0,0.00014973,2]
[391456650,1760610634864,-500.0,0.00014973,2]
[391456651,1760610634873,-500.0,0.00014973,2]
[391456652,1760610634882,-501.37275686,0.00014973,2]
[391456653,1760610634892,-500.0,0.00014973,2]
[391456654,1760610634901,-500.0,0.00014973,2]
[391456655,1760610634909,-374.33873359,0.0001499,2]
[391456656,1760610634918,-225.82112591,0.00014999,2]
[391456657,1760610634928,-206.99741627,0.00014999,2]
[391456658,1760610634938,-276.08495122,0.00014999,2]
[391456659,1760610634947,-536.81710404,0.00014999,2]
[391456660,1760610634957,-678.97529106,0.00014999,2]
[391456661,1760610634966,-94870.71913615,0.00015,2]
[391456662,1760610635056,-398.91000001,0.00015,2]
[391456663,1760610635182,-2607.36466766,0.00015,2]
[391456965,1760610641185,-70754.78675584,0.00015,2]
[391457200,1760610643463,-1664.66470001,0.00015,2]
[391457202,1760610643477,-585.4006745,0.00015,2]
[391457204,1760610643488,-206240.08115356,0.00015,2]
[391457341,1760610644847,-1162.31644101,0.00015,2]
[391457347,1760610644899,-2037.53402926,0.00015,2]
[391457349,1760610644910,-4672.40176,0.00015,2]
[391457366,1760610645065,-64865.76396143,0.00015,2]
[391457369,1760610645077,-35755.8687072,0.00015,2]
[391457371,1760610645088,-6667.61509461,0.00015,2]
[391457705,1760610648328,-346.4546635,0.00015,2]
[391457723,1760610648486,-1286.51485908,0.00015,2]
[391457731,1760610648547,-875805.63124358,0.00015,2]
[391457733,1760610648558,-333.69715762,0.00015,2]
[391457994,1760610651032,-11300.08706208,0.00015,2]
[391457999,1760610651091,-33546.0,0.00015,2]
[391458000,1760610651103,-332.4,0.00015,2]
[391458001,1760610651115,-459.62,0.00015,2]
[391458002,1760610651173,-966.83317532,0.00015,2]
[391458003,1760610651185,-388.09316,0.00015,2]
[391458004,1760610651223,-2232.2,0.00015,2]
[391459271,1760611273670,422.41,0.00016438,30]
[391459311,1760611406376,-250.0,0.00014389,7]
[391459312,1760611406398,-15.58,0.00014681,2]
[391459344,1760611587673,-150.0,0.00016438,30]
[391459368,1760611701256,180.91658552,0.00027397,120]
[391460065,1760611844364,-200.0,0.00014353,2]
[391460066,1760611844374,-487.42286,0.0001485,2]
[391460067,1760611844383,-370.59,0.00014875,2]
[391460068,1760611844393,-150.0,0.00014875,2]
[391460069,1760611844402,-1200.0,0.00014899,2]
[391460070,1760611844412,-300.0,0.00014899,2]
[391460072,1760611844421,-160.63425148,0.000149,2]
[391460074,1760611844431,-188.90013856,0.000149,2]
[391460076,1760611844440,-4793.71652701,0.000149,2]
[391460078,1760611844449,-851.47278684,0.000149,2]
[391460088,1760611844536,-3016.59948168,0.000149,2]
[391460093,1760611844573,-816.74117591,0.000149,2]
[391460103,1760611844652,-394.93,0.000149,2]
[391460110,1760611844719,-555.555,0.000149,2]
[391460763,1760611850937,-335.9007783,0.000149,2]
[391460776,1760611851048,-283.95094223,0.000149,2]
[391460778,1760611851058,-211.67235406,0.000149,2]
[391460780,1760611851067,-326.45192,0.000149,2]
[391460782,1760611851076,-165.64,0.0001492,2]